fUST/lending_fUST_20250517
["ID","MTS","AMOUNT","RATE_DAILY","PERIOD"]
[361307402,1747443038857,-500.0,0.00014998,2]
[361307404,1747443038866,-155.98527093,0.00014998,2]
[361307406,1747443038877,-498.40775301,0.00014998,2]
[361307408,1747443038886,-192.36335951,0.00014998,2]
[361307410,1747443038895,-500.0,0.00014999,2]
[361307412,1747443038904,-500.0,0.00014999,2]
[361307413,1747443038913,-500.0,0.00014999,2]
[361307415,1747443038923,-500.0,0.00014999,2]
[361307417,1747443038932,-500.0,0.00014999,2]
[361307419,1747443038942,-500.0,0.00014999,2]
[361307422,1747443038951,-592.7851943,0.00014999,2]
[361307424,1747443038960,-500.0,0.00014999,2]
[361307426,1747443038970,-500.0,0.00014999,2]
[361307428,1747443038979,-500.0,0.00014999,2]
[361307430,1747443038988,-402.44415411,0.00014999,2]
[361307432,1747443038997,-500.0,0.00014999,2]
[361307434,1747443039006,-400.0,0.00014999,2]
[361307436,1747443039015,-500.0,0.00014999,2]
[361307437,1747443039025,-500.0,0.00014999,2]
[361307439,1747443039034,-500.0,0.00014999,2]
[361307441,1747443039044,-607.66943901,0.00014999,2]
[361307443,1747443039053,-545.05991859,0.00015,3]
[361307445,1747443039062,-5030.70508311,0.00015,2]
[361307447,1747443039071,-68567.19306918,0.00015,5]
[361307450,1747443039083,-5541.14701187,0.00015,5]
[361307452,1747443039094,-1571.1992032,0.00015,5]
[361307454,1747443039105,-686.54162431,0.00015,5]
[361307456,1747443039116,-16508.11598627,0.00015,5]
[361307459,1747443039129,-8888.38812523,0.00015,5]
[361307461,1747443039140,-868.00384697,0.00015,5]
[361307463,1747443039151,-941.77878145,0.00015,5]
[361307465,1747443039163,-600.00000025,0.00015,5]
[361307468,1747443039174,-3434.68786572,0.00015,5]
[361307470,1747443039187,-5732.31551488,0.00015,5]
[361307473,1747443039202,-1535.41964536,0.00015,5]
[361307537,1747443040788,-80540.60607317,0.00015,5]
[361307539,1747443040799,-2696.99999992,0.00015,5]
[361307541,1747443040810,-4139.83189452,0.00015,5]
[361307544,1747443040821,-15906.29122296,0.00015,5]
[361307657,1747443044748,-1685.7641969,0.000149,2]
[361307659,1747443044758,-612.81362652,0.00015,5]
[361307662,1747443044771,-2086.8534869,0.00015,5]
[361307666,1747443044802,-3682.13468578,0.00015,5]
[361307698,1747443045045,-6092.37393581,0.00015,5]
[361307700,1747443045057,-691.43364842,0.00015,5]
[361307842,1747443046605,-891.0020001,0.00015,5]
[361307849,1747443046659,-31437.8519579,0.00015,5]
[361308180,1747444231666,-2977.24,0.00013698,2]
[361308183,1747444231678,-474.835873,0.00013699,2]
[361308185,1747444231687,-1603.89300372,0.00013835,2]
[361308261,1747444237825,-1174.95282108,0.00013835,2]
[361308264,1747444237838,-198.3941752,0.00013835,2]
[361308266,1747444237847,-212.26722696,0.00013921,2]
[361308268,1747444237857,-160.0,0.00013921,2]
[361308270,1747444237868,-1200.0,0.00013969,2]
[361308272,1747444237877,-300.0,0.00013971,2]
[361308274,1747444237887,-300.0,0.00013971,2]
[361308276,1747444237898,-1731.1405995,0.00013972,2]
[361308278,1747444237910,-1246.0994005,0.00013972,2]
[361308280,1747444237920,-853.361532,0.00013981,2]
[361308282,1747444237930,-2296.34159955,0.00014109,2]
[361308408,1747444239821,-680.89840045,0.00014109,2]
[361308410,1747444239831,-1888.27534658,0.00014109,2]
[361308414,1747444239878,-475.32,0.00014109,2]
[361308431,1747444242775,-379.81807719,0.00014109,2]
[361308432,1747444242833,-3181.79721825,0.00014109,2]
[361308433,1747444242842,-2977.24,0.00014246,2]
[361308434,1747444242852,-2333.83381228,0.00014383,2]
[361308435,1747444242864,-643.40618772,0.00014383,2]
[361308436,1747444242874,-153.0,0.000144,2]
[361308437,1747444242883,-153.0,0.000144,2]
[361308438,1747444242892,-2977.24,0.0001452,2]
[361308439,1747444242903,-2977.24,0.00014657,2]
[361308440,1747444242912,-415.54737709,0.00014691,2]
[361308441,1747444242922,-500.0,0.00014697,2]
[361308442,1747444242931,-500.0,0.00014697,2]
[361308443,1747444242940,-396.97412137,0.00014697,2]
[361308444,1747444242950,-179.92703603,0.00014697,2]
[361308445,1747444242959,-500.0,0.00014697,2]
[361308446,1747444242968,-310.05596305,0.00014697,2]
[361308447,1747444242977,-500.0,0.00014697,2]
[361308448,1747444242987,-500.0,0.00014697,2]
[361308449,1747444242996,-500.0,0.00014697,2]
[361308450,1747444243005,-500.0,0.00014697,2]
[361308451,1747444243014,-500.0,0.00014697,2]
[361308452,1747444243024,-228.518,0.00014698,2]
[361308453,1747444243034,-2977.24,0.00014794,2]
[361308454,1747444243043,-937.29584168,0.000148,2]
[361308455,1747444243055,-62.70415832,0.000148,2]
[361308456,1747444243064,-160.0,0.00014868,2]
[361308457,1747444243073,-998.24360331,0.00014868,2]
[361308458,1747444243083,-165.28605496,0.000149,2]
[361308459,1747444243092,-1966.24631817,0.000149,2]
[361308460,1747444243102,-1698.31170183,0.000149,2]
[361308461,1747444243113,-157.9836262,0.00014924,2]
[361308462,1747444243123,-2977.24,0.00014931,2]
[361308463,1747444243134,-500.0,0.00014973,2]
[361308464,1747444243146,-500.0,0.00014973,2]
[361308465,1747444243155,-160.322,0.00015,2]
[361308466,1747444243165,-272.52995929,0.00015,3]
[361308467,1747444243174,-1409.35713798,0.00015,2]
[361308476,1747444245764,-422.39640784,0.00014866,2]
[361308477,1747444245773,-659.7258989,0.00015,2]
[361308478,1747444245930,-2028.12413395,0.00015,2]
[361308643,1747445437756,700.0,0.00027397,120]
[361308644,1747445437789,845.79168629,0.00027397,120]
[361308646,1747445437906,-471.54538709,0.00013,2]
[361308649,1747445437979,-2565.66798153,0.00013,2]
[361308650,1747445437988,-300.0,0.00013697,2]
[361308651,1747445437998,-1736.72,0.00013698,2]
[361308652,1747445438008,-295.77657484,0.00013698,2]
[361308653,1747445438017,-218.22401415,0.00013698,2]
[361308654,1747445438026,-385.63498059,0.00013698,2]
[361308655,1747445438036,-190.00641871,0.00013698,2]
[361308656,1747445438046,-170.50962742,0.00013698,2]
[361308657,1747445438055,-426.680766,0.00013699,2]
[361308659,1747445438064,-451.094079,0.00013699,2]
[361308660,1747445438074,-1062.0,0.00013834,2]
[361308661,1747445438085,-1736.72,0.00013835,2]
[361308662,1747445438094,-422.39640784,0.00013925,2]
[361308663,1747445438104,-83.88286998,0.00013925,2]
[361308664,1747445438117,-611.85232966,0.00013925,2]
[361308665,1747445438127,-144.03742204,0.00013925,2]
[361308666,1747445438138,-2626.14514069,0.00013925,2]
[361308667,1747445438150,-35.85350919,0.00013925,2]
[361308668,1747445438159,-1191.7701723,0.00013972,2]
[361308669,1747445438170,-544.9498277,0.00013972,2]
[361308670,1747445438180,-1736.72,0.00014109,2]
[361308671,1747445438190,-250.0,0.00014196,2]
[361308672,1747445438199,-1736.72,0.00014246,2]
[361308673,1747445438208,-974.05236035,0.00014383,2]
[361308767,1747445440223,-762.66763965,0.00014383,2]
[361308770,1747445440232,-293.53793011,0.0001452,2]
[361308773,1747445440243,-1443.18206989,0.0001452,2]
[361308775,1747445440253,-1736.72,0.00014657,2]
[361308777,1747445440262,-1736.72,0.00014794,2]
[361308779,1747445440272,-165.28605496,0.000149,2]
[361308781,1747445440281,-3139.5499594,0.000149,2]
[361308783,1747445440291,-1971.31789691,0.000149,2]
[361308785,1747445440301,-160.6833173,0.00014924,2]
[361308787,1747445440310,-1736.72,0.00014931,2]
[361308789,1747445440319,-349.37482066,0.00014972,2]
[361308791,1747445440329,-501.02831448,0.00014972,2]
[361308793,1747445440338,-507.28691293,0.00014972,2]
[361308795,1747445440347,-502.79698791,0.00014972,2]
[361308797,1747445440356,-624.76992074,0.00014972,2]
[361308799,1747445440366,-500.0,0.00014972,2]
[361308801,1747445440376,-500.0,0.00014972,2]
[361308803,1747445440389,-500.0,0.00014972,2]
[361308805,1747445440397,-500.0,0.00014972,2]
[361308807,1747445440407,-287.55662375,0.00014972,2]
[361308809,1747445440416,-500.0,0.00014972,2]
[361308811,1747445440427,-500.0,0.00014972,2]
[361308813,1747445440436,-500.0,0.00014972,2]
[361308815,1747445440445,-631.68440566,0.00014972,2]
[361308817,1747445440454,-500.0,0.00014972,2]
[361308819,1747445440464,-500.0,0.00014972,2]
[361308821,1747445440475,-500.0,0.00014972,2]
[361308823,1747445440484,-280.32318783,0.00014972,2]
[361308825,1747445440493,-500.0,0.00014972,2]
[361308827,1747445440502,-500.0,0.00014973,2]
[361308829,1747445440512,-500.0,0.00014973,2]
[361308831,1747445440522,-500.0,0.00014973,2]
[361308833,1747445440531,-500.0,0.00014973,2]
[361308835,1747445440540,-404.0,0.00014997,2]
[361308837,1747445440549,-202.27061245,0.00014999,2]
[361308839,1747445440559,-500.0,0.00014999,2]
[361308841,1747445440568,-500.0,0.00014999,2]
[361308843,1747445440577,-500.0,0.00014999,2]
[361308845,1747445440586,-500.0,0.00014999,2]
[361308847,1747445440595,-500.0,0.00014999,2]
[361308849,1747445440604,-245.26902859,0.00014999,2]
[361308851,1747445440613,-500.0,0.00014999,2]
[361308853,1747445440622,-500.0,0.00014999,2]
[361308855,1747445440632,-500.0,0.00014999,2]
[361308857,1747445440641,-500.0,0.00014999,2]
[361308859,1747445440650,-500.0,0.00014999,2]
[361308861,1747445440659,-500.0,0.00014999,2]
[361308863,1747445440668,-500.0,0.00014999,2]
[361308865,1747445440677,-500.0,0.00014999,2]
[361308867,1747445440686,-500.0,0.00014999,2]
[361308869,1747445440695,-500.0,0.00014999,2]
[361308871,1747445440704,-500.0,0.00014999,2]
[361308873,1747445440713,-350.0,0.00014999,2]
[361308875,1747445440722,-562.01988786,0.00014999,2]
[361308877,1747445440731,-160.4569637,0.00014999,2]
[361308879,1747445440740,-272.52995929,0.00014999,3]
[361308881,1747445440749,-10669.08837857,0.00014999,2]
[361308883,1747445440759,-76110.90976172,0.00015,5]
[361308972,1747445443416,-167.46890607,0.00013698,2]
[361308974,1747445443426,-510.00812155,0.00013698,2]
[361308975,1747445443438,-160.0,0.00013925,2]
[361308976,1747445443448,-110114.51714111,0.00015,5]
[361308983,1747445443518,-133584.09513473,0.00015,5]
[361309223,1747445446035,-20803.73242852,0.00015,5]
[361309314,1747445490779,200.0,0.00025805,120]
[361309315,1747445740770,1218.0,0.000273,120]
[361309350,1747446632312,-300.0,0.00013696,2]
[361309351,1747446632322,-300.0,0.00013696,2]
[361309352,1747446632331,-500.0,0.00013697,2]
[361309353,1747446632341,-500.0,0.00013697,2]
[361309354,1747446632350,-500.0,0.00013697,2]
[361309355,1747446632359,-500.0,0.00013697,2]
[361309356,1747446632373,-278.03231878,0.00013697,2]
[361309357,1747446632382,-500.0,0.00013697,2]
[361309358,1747446632391,-500.0,0.00013697,2]
[361309359,1747446632400,-500.0,0.00013697,2]
[361309360,1747446632410,-500.0,0.00013697,2]
[361309361,1747446632419,-182.96794425,0.00013697,2]
[361309362,1747446632429,-500.0,0.00013697,2]
[361309363,1747446632438,-345.90299089,0.00013697,2]
[361309364,1747446632447,-155.8997159,0.00013697,2]
[361309365,1747446632457,-321.58806291,0.00013698,2]
[361309366,1747446632466,-241.57555021,0.00013698,2]
[361309367,1747446632475,-546.38789143,0.00013698,2]
[361309368,1747446632485,-455.79223378,0.00013698,2]
[361309369,1747446632495,-503.04582071,0.00013698,2]
[361309370,1747446632505,-456.2265789,0.00013698,2]
[361309371,1747446632514,-575.0914015,0.00013698,2]
[361309372,1747446632523,-299.79922735,0.00013698,2]
[361309373,1747446632532,-450.66827011,0.00013698,2]
[361309374,1747446632541,-503.76412644,0.00013698,2]
[361309375,1747446632550,-456.94151109,0.00013698,2]
[361309376,1747446632558,-458.99221837,0.00013698,2]
[361309377,1747446632567,-529.68333335,0.00013698,2]
[361309378,1747446632576,-501.31226296,0.00013698,2]
[361309379,1747446632584,-450.0,0.00013698,2]
[361309380,1747446632593,-450.0,0.00013698,2]
[361309381,1747446632602,-450.0,0.00013698,2]
[361309382,1747446632615,-450.0,0.00013698,2]
[361309383,1747446632624,-450.0,0.00013698,2]
[361309384,1747446632634,-450.0,0.00013698,2]
[361309385,1747446632644,-450.0,0.00013698,2]
[361309386,1747446632653,-450.0,0.00013698,2]
[361309387,1747446632663,-450.0,0.00013698,2]
[361309388,1747446632672,-450.0,0.00013698,2]
[361309389,1747446632682,-450.0,0.00013698,2]
[361309390,1747446632691,-450.0,0.00013698,2]
[361309391,1747446632701,-450.0,0.00013698,2]
[361309392,1747446632710,-450.0,0.00013698,2]
[361309393,1747446632720,-450.0,0.00013698,2]
[361309394,1747446632729,-450.0,0.00013698,2]
[361309396,1747446632739,-450.0,0.00013698,2]
[361309398,1747446632749,-1137.14,0.00013698,2]
[361309400,1747446632758,-450.0,0.00013698,2]
[361309402,1747446632768,-450.0,0.00013698,2]
[361309403,1747446632777,-450.0,0.00013698,2]
[361309404,1747446632787,-503.86922974,0.00013698,2]
[361309405,1747446632798,-450.0,0.00013698,2]
[361309406,1747446632808,-450.0,0.00013698,2]
[361309408,1747446632818,-450.0,0.00013698,2]
[361309409,1747446632827,-450.0,0.00013698,2]
[361309410,1747446632837,-450.0,0.00013698,2]
[361309412,1747446632846,-450.0,0.00013698,2]
[361309414,1747446632855,-450.0,0.00013698,2]
[361309416,1747446632867,-450.0,0.00013698,2]
[361309417,1747446632876,-450.0,0.00013698,2]
[361309419,1747446632885,-450.0,0.00013698,2]
[361309421,1747446632895,-154.14609574,0.00013698,2]
[361309423,1747446632904,-450.0,0.00013698,2]
[361309425,1747446632913,-450.0,0.00013698,2]
[361309427,1747446632922,-450.0,0.00013698,2]
[361309429,1747446632932,-450.0,0.00013698,2]
[361309431,1747446632941,-450.0,0.00013698,2]
[361309432,1747446632950,-450.0,0.00013698,2]
[361309434,1747446632959,-450.0,0.00013698,2]
[361309436,1747446632972,-450.0,0.00013698,2]
[361309438,1747446632982,-450.0,0.00013698,2]
[361309439,1747446632991,-450.0,0.00013698,2]
[361309441,1747446633001,-450.0,0.00013698,2]
[361309443,1747446633012,-450.0,0.00013698,2]
[361309445,1747446633021,-450.0,0.00013698,2]
[361309447,1747446633030,-450.0,0.00013698,2]
[361309449,1747446633042,-450.0,0.00013698,2]
[361309451,1747446633051,-450.0,0.00013698,2]
[361309453,1747446633061,-450.0,0.00013698,2]
[361309455,1747446633071,-450.0,0.00013698,2]
[361309457,1747446633080,-450.0,0.00013698,2]
[361309458,1747446633089,-557.31,0.00013698,2]
[361309459,1747446633098,-450.0,0.00013698,2]
[361309461,1747446633108,-450.0,0.00013698,2]
[361309463,1747446633119,-411.13927153,0.00013698,2]
[361309465,1747446633129,-450.0,0.00013698,2]
[361309467,1747446633138,-211.55093842,0.00013698,2]
[361309469,1747446633152,-238.44906158,0.00013698,2]
[361309470,1747446633163,-418.60366812,0.00013698,2]
[361309472,1747446633172,-450.0,0.00013698,2]
[361309474,1747446633183,-450.0,0.00013698,2]
[361309476,1747446633192,-450.0,0.00013698,2]
[361309478,1747446633202,-450.0,0.00013698,2]
[361309480,1747446633213,-450.0,0.00013698,2]
[361309482,1747446633222,-604.2,0.00013698,2]
[361309484,1747446633231,-450.0,0.00013698,2]
[361309486,1747446633240,-305.06867561,0.00013698,2]
[361309488,1747446633252,-144.93132439,0.00013698,2]
[361309490,1747446633262,-812.03,0.00013698,2]
[361309492,1747446633271,-450.0,0.00013698,2]
[361309494,1747446633280,-450.0,0.00013698,2]
[361309496,1747446633290,-450.0,0.00013698,2]
[361309498,1747446633299,-450.0,0.00013698,2]
[361309500,1747446633308,-450.0,0.00013698,2]
[361309502,1747446633317,-450.0,0.00013698,2]
[361309520,1747446633327,-450.0,0.00013698,2]
[361309522,1747446633501,-450.0,0.00013698,2]
[361309524,1747446633511,-156.20318784,0.00013698,2]
[361309526,1747446633521,-450.0,0.00013698,2]
[361309528,1747446633531,-450.0,0.00013698,2]
[361309530,1747446633541,-450.0,0.00013698,2]
[361309532,1747446633551,-450.0,0.00013698,2]
[361309534,1747446633561,-1119.19,0.00013698,2]
[361309535,1747446633570,-450.0,0.00013698,2]
[361309536,1747446633580,-450.0,0.00013698,2]
[361309537,1747446633590,-450.0,0.00013698,2]
[361309538,1747446633599,-450.0,0.00013698,2]
[361309539,1747446633609,-450.0,0.00013698,2]
[361309540,1747446633620,-450.0,0.00013698,2]
[361309541,1747446633630,-450.0,0.00013698,2]
[361309542,1747446633639,-450.0,0.00013698,2]
[361309543,1747446633649,-450.0,0.00013698,2]
[361309544,1747446633659,-450.0,0.00013698,2]
[361309545,1747446633668,-450.0,0.00013698,2]
[361309546,1747446633677,-450.0,0.00013698,2]
[361309547,1747446633688,-450.0,0.00013698,2]
[361309548,1747446633697,-450.0,0.00013698,2]
[361309549,1747446633706,-450.0,0.00013698,2]
[361309550,1747446633716,-450.0,0.00013698,2]
[361309551,1747446633726,-450.0,0.00013698,2]
[361309552,1747446633737,-450.0,0.00013698,2]
[361309553,1747446633746,-450.0,0.00013698,2]
[361309554,1747446633756,-450.0,0.00013698,2]
[361309555,1747446633765,-450.0,0.00013698,2]
[361309556,1747446633774,-450.0,0.00013698,2]
[361309557,1747446633783,-450.0,0.00013698,2]
[361309558,1747446633792,-450.0,0.00013698,2]
[361309559,1747446633802,-450.0,0.00013698,2]
[361309560,1747446633812,-382.21929984,0.00013698,2]
[361309561,1747446633821,-450.0,0.00013698,2]
[361309562,1747446633831,-450.0,0.00013698,2]
[361309563,1747446633841,-450.0,0.00013698,2]
[361309564,1747446633851,-450.0,0.00013698,2]
[361309565,1747446633860,-450.0,0.00013698,2]
[361309566,1747446633872,-450.0,0.00013698,2]
[361309567,1747446633882,-450.0,0.00013698,2]
[361309568,1747446633892,-450.0,0.00013698,2]
[361309569,1747446633901,-450.0,0.00013698,2]
[361309570,1747446633910,-450.0,0.00013698,2]
[361309571,1747446633920,-450.0,0.00013698,2]
[361309572,1747446633929,-450.0,0.00013698,2]
[361309573,1747446633939,-450.0,0.00013698,2]
[361309574,1747446633949,-450.0,0.00013698,2]
[361309575,1747446633959,-450.0,0.00013698,2]
[361309576,1747446633971,-450.0,0.00013698,2]
[361309577,1747446633981,-450.0,0.00013698,2]
[361309578,1747446633990,-450.0,0.00013698,2]
[361309579,1747446633999,-450.0,0.00013698,2]
[361309580,1747446634008,-450.0,0.00013698,2]
[361309581,1747446634017,-450.0,0.00013698,2]
[361309582,1747446634026,-450.0,0.00013698,2]
[361309583,1747446634036,-450.0,0.00013698,2]
[361309584,1747446634045,-450.0,0.00013698,2]
[361309585,1747446634054,-497.29,0.00013698,2]
[361309586,1747446634064,-450.0,0.00013698,2]
[361309587,1747446634073,-450.0,0.00013698,2]
[361309588,1747446634083,-450.0,0.00013698,2]
[361309589,1747446634092,-450.0,0.00013698,2]
[361309590,1747446634102,-450.0,0.00013698,2]
[361309591,1747446634111,-450.0,0.00013698,2]
[361309592,1747446634124,-166.28389245,0.00013698,2]
[361309593,1747446634133,-464.67449528,0.00013698,2]
[361309594,1747446634142,-450.0,0.00013698,2]
[361309595,1747446634152,-450.0,0.00013698,2]
[361309596,1747446634161,-292.83991639,0.00013698,2]
[361309597,1747446634171,-450.0,0.00013698,2]
[361309598,1747446634180,-450.0,0.00013698,2]
[361309599,1747446634189,-450.0,0.00013698,2]
[361309600,1747446634199,-450.0,0.00013698,2]
[361309601,1747446634207,-450.0,0.00013698,2]
[361309602,1747446634217,-450.0,0.00013698,2]
[361309603,1747446634225,-450.0,0.00013698,2]
[361309604,1747446634235,-450.0,0.00013698,2]
[361309605,1747446634244,-450.0,0.00013698,2]
[361309606,1747446634253,-450.0,0.00013698,2]
[361309607,1747446634263,-450.0,0.00013698,2]
[361309608,1747446634272,-450.0,0.00013698,2]
[361309609,1747446634281,-450.0,0.00013698,2]
[361309610,1747446634290,-450.0,0.00013698,2]
[361309611,1747446634300,-450.0,0.00013698,2]
[361309612,1747446634310,-450.0,0.00013698,2]
[361309613,1747446634319,-450.0,0.00013698,2]
[361309614,1747446634328,-450.0,0.00013698,2]
[361309615,1747446634338,-495.43,0.00013698,2]
[361309616,1747446634347,-450.0,0.00013698,2]
[361309617,1747446634358,-450.0,0.00013698,2]
[361309618,1747446634371,-450.0,0.00013698,2]
[361309619,1747446634381,-450.0,0.00013698,2]
[361309620,1747446634390,-450.0,0.00013698,2]
[361309621,1747446634401,-802.82,0.00013698,2]
[361309622,1747446634411,-450.0,0.00013698,2]
[361309623,1747446634420,-450.0,0.00013698,2]
[361309624,1747446634430,-450.0,0.00013698,2]
[361309625,1747446634439,-458.263387,0.00013699,2]
[361309626,1747446634450,-500.0,0.00013834,2]
[361309627,1747446634460,-500.0,0.00013834,2]
[361309628,1747446634470,-281.79760671,0.00013834,2]
[361309629,1747446634479,-500.0,0.00013834,2]
[361309630,1747446634489,-397.41319964,0.00013834,2]
[361309631,1747446634499,-500.0,0.00013834,2]
[361309632,1747446634508,-500.0,0.00013834,2]
[361309633,1747446634517,-500.0,0.00013834,2]
[361309634,1747446634527,-500.0,0.00013834,2]
[361309635,1747446634536,-500.0,0.00013834,2]
[361309636,1747446634545,-500.0,0.00013834,2]
[361309637,1747446634555,-500.0,0.00013834,2]
[361309638,1747446634564,-500.0,0.00013834,2]
[361309639,1747446634574,-500.0,0.00013834,2]
[361309640,1747446634585,-500.0,0.00013834,2]
[361309641,1747446634594,-500.0,0.00013834,2]
[361309642,1747446634604,-500.0,0.00013834,2]
[361309643,1747446634613,-637.09458429,0.00013834,2]
[361309644,1747446634626,-600.0,0.00013834,2]
[361309645,1747446634635,-462.73091939,0.00013835,2]
[361309646,1747446634645,-467.75678222,0.00013835,2]
[361309647,1747446634654,-450.0,0.00013835,2]
[361309648,1747446634664,-450.0,0.00013835,2]
[361309649,1747446634673,-458.02508649,0.00013835,2]
[361309650,1747446634684,-450.0,0.00013835,2]
[361309651,1747446634694,-419.51304068,0.00013835,2]
[361309652,1747446634704,-459.07343112,0.00013835,2]
[361309653,1747446634713,-450.0,0.00013835,2]
[361309654,1747446634723,-460.67468419,0.00013835,2]
[361309655,1747446634733,-450.0,0.00013835,2]
[361309656,1747446634742,-450.0,0.00013835,2]
[361309657,1747446634751,-458.98559276,0.00013835,2]
[361309658,1747446634761,-599.78981277,0.00013835,2]
[361309659,1747446634770,-463.44024673,0.00013835,2]
[361309660,1747446634779,-459.89670959,0.00013835,2]
[361309661,1747446634788,-459.41292172,0.00013835,2]
[361309662,1747446634798,-1137.14,0.00013835,2]
[361309663,1747446634807,-559.43673139,0.00013835,2]
[361309664,1747446634817,-150.86886336,0.00013835,2]
[361309665,1747446634826,-450.0,0.00013835,2]
[361309666,1747446634835,-450.0,0.00013835,2]
[361309667,1747446634846,-450.0,0.00013835,2]
[361309668,1747446634855,-450.0,0.00013835,2]
[361309669,1747446634867,-450.0,0.00013835,2]
[361309670,1747446634876,-450.0,0.00013835,2]
[361309671,1747446634885,-450.0,0.00013835,2]
[361309672,1747446634894,-450.0,0.00013835,2]
[361309673,1747446634903,-450.0,0.00013835,2]
[361309674,1747446634912,-450.0,0.00013835,2]
[361309675,1747446634922,-450.0,0.00013835,2]
[361309676,1747446634931,-450.0,0.00013835,2]
[361309677,1747446634940,-450.0,0.00013835,2]
[361309678,1747446634949,-202.78294761,0.00013835,2]
[361309679,1747446634959,-450.0,0.00013835,2]
[361309680,1747446634972,-450.0,0.00013835,2]
[361309681,1747446634981,-450.0,0.00013835,2]
[361309682,1747446634990,-450.0,0.00013835,2]
[361309683,1747446635000,-450.0,0.00013835,2]
[361309684,1747446635009,-450.0,0.00013835,2]
[361309685,1747446635019,-450.0,0.00013835,2]
[361309686,1747446635028,-450.0,0.00013835,2]
[361309687,1747446635037,-450.0,0.00013835,2]
[361309688,1747446635047,-450.0,0.00013835,2]
[361309689,1747446635057,-450.0,0.00013835,2]
[361309690,1747446635066,-450.0,0.00013835,2]
[361309691,1747446635075,-450.0,0.00013835,2]
[361309692,1747446635084,-450.0,0.00013835,2]
[361309693,1747446635093,-450.0,0.00013835,2]
[361309694,1747446635101,-450.0,0.00013835,2]
[361309695,1747446635110,-557.31,0.00013835,2]
[361309696,1747446635120,-450.0,0.00013835,2]
[361309697,1747446635130,-450.0,0.00013835,2]
[361309698,1747446635139,-450.0,0.00013835,2]
[361309699,1747446635148,-450.0,0.00013835,2]
[361309700,1747446635157,-450.0,0.00013835,2]
[361309701,1747446635166,-450.0,0.00013835,2]
[361309702,1747446635175,-450.0,0.00013835,2]
[361309703,1747446635185,-450.0,0.00013835,2]
[361309704,1747446635194,-450.0,0.00013835,2]
[361309705,1747446635203,-604.2,0.00013835,2]
[361309706,1747446635212,-450.0,0.00013835,2]
[361309707,1747446635221,-450.0,0.00013835,2]
[361309708,1747446635230,-812.03,0.00013835,2]
[361309709,1747446635239,-214.89805551,0.00013835,2]
[361309710,1747446635248,-450.0,0.00013835,2]
[361309711,1747446635257,-450.0,0.00013835,2]
[361309712,1747446635266,-450.0,0.00013835,2]
[361309713,1747446635275,-450.0,0.00013835,2]
[361309714,1747446635284,-450.0,0.00013835,2]
[361309715,1747446635293,-450.0,0.00013835,2]
[361309716,1747446635302,-450.0,0.00013835,2]
[361309717,1747446635312,-450.0,0.00013835,2]
[361309718,1747446635321,-450.0,0.00013835,2]
[361309719,1747446635330,-450.0,0.00013835,2]
[361309720,1747446635340,-450.0,0.00013835,2]
[361309721,1747446635350,-1119.19,0.00013835,2]
[361309722,1747446635359,-450.0,0.00013835,2]
[361309723,1747446635370,-450.0,0.00013835,2]
[361309724,1747446635380,-450.0,0.00013835,2]